[Event "Early-Titled-Tuesday-Blitz-August-29-2023"]
[Site "Chess.com"]
[Date "2023.08.29"]
[Round "5"]
[White "jsdbv18"]
[Black "Road2GM3000"]
[Result "1-0"]
[WhiteElo "2601"]
[BlackElo "2430"]
[TimeControl "180+1"]
[EndTime "8:54:39 PDT"]
[Termination "jsdbv18 won on time"]

1. d4 {[%clk 0:02:56.3]} 1... d5 {[%clk 0:02:59.7]} 2. Bf4 {[%clk 0:02:56.7]}
2... Nf6 {[%clk 0:02:59.3]} 3. e3 {[%clk 0:02:56.2]} 3... c6 {[%clk 0:02:57.5]}
4. c4 {[%clk 0:02:54.2]} 4... e6 {[%clk 0:02:57]} 5. Nc3 {[%clk 0:02:54]} 5...
Bd6 {[%clk 0:02:56.6]} 6. c5 {[%clk 0:02:49.5]} 6... Bxf4 {[%clk 0:02:54.8]} 7.
exf4 {[%clk 0:02:50.3]} 7... Nbd7 {[%clk 0:02:49.6]} 8. Nf3 {[%clk 0:02:49]}
8... b6 {[%clk 0:02:47.4]} 9. b4 {[%clk 0:02:48.6]} 9... a5 {[%clk 0:02:47.5]}
10. a3 {[%clk 0:02:43.6]} 10... O-O {[%clk 0:02:44.9]} 11. Bd3 {[%clk
0:02:42.2]} 11... Ba6 {[%clk 0:02:41.9]} 12. O-O {[%clk 0:02:38.3]} 12... Bxd3
{[%clk 0:02:37.1]} 13. Qxd3 {[%clk 0:02:38.1]} 13... Qc7 {[%clk 0:02:35.1]} 14.
Ne5 {[%clk 0:02:20.7]} 14... bxc5 {[%clk 0:02:31.8]} 15. bxc5 {[%clk 0:02:20.5]}
15... Rfb8 {[%clk 0:02:28.2]} 16. Rab1 {[%clk 0:02:18.8]} 16... h6 {[%clk
0:02:21.8]} 17. g3 {[%clk 0:02:10.4]} 17... a4 {[%clk 0:02:17]} 18. Na2 {[%clk
0:02:09.9]} 18... Ne4 {[%clk 0:01:54.1]} 19. Nb4 {[%clk 0:02:05.5]} 19... Nxe5
{[%clk 0:01:53.3]} 20. fxe5 {[%clk 0:02:05.5]} 20... Rb5 {[%clk 0:01:48.7]} 21.
Kg2 {[%clk 0:02:00]} 21... f6 {[%clk 0:01:08.5]} 22. f3 {[%clk 0:01:53.3]} 22...
Ng5 {[%clk 0:01:08.5]} 23. h4 {[%clk 0:01:49.7]} 23... Nh7 {[%clk 0:01:06.5]}
24. Rfe1 {[%clk 0:01:46.9]} 24... f5 {[%clk 0:01:04.7]} 25. Qc2 {[%clk
0:01:38.8]} 25... Kh8 {[%clk 0:01:03.3]} 26. Nd3 {[%clk 0:01:35]} 26... Rxb1
{[%clk 0:00:26.5]} 27. Rxb1 {[%clk 0:01:34.6]} 27... g5 {[%clk 0:00:27]} 28.
hxg5 {[%clk 0:01:32.5]} 28... Nxg5 {[%clk 0:00:26.9]} 29. Rh1 {[%clk 0:01:28.6]}
29... Qg7 {[%clk 0:00:26.2]} 30. Nf4 {[%clk 0:01:24.2]} 30... Rg8 {[%clk
0:00:23]} 31. Qf2 {[%clk 0:01:20.7]} 31... Kh7 {[%clk 0:00:19.4]} 32. Nh5 {[%clk
0:01:19.6]} 32... Qf8 {[%clk 0:00:13.4]} 33. Nf6+ {[%clk 0:01:19.9]} 33... Kg6
{[%clk 0:00:13.6]} 34. Nxg8 {[%clk 0:01:16.9]} 34... Qxg8 {[%clk 0:00:14.5]} 35.
Rb1 {[%clk 0:01:11.4]} 35... Qa8 {[%clk 0:00:11.1]} 36. Rb6 {[%clk 0:01:02.1]}
36... Qa5 {[%clk 0:00:10.6]} 37. Rxc6 {[%clk 0:01:01.8]} 37... h5 {[%clk
0:00:10]} 38. Qe2 {[%clk 0:00:59.1]} 38... Qc3 {[%clk 0:00:08.2]} 39. Qf2 {[%clk
0:00:49]} 39... f4 {[%clk 0:00:06.2]} 40. gxf4 {[%clk 0:00:47.1]} 1-0

[Event "Early-Titled-Tuesday-Blitz-August-29-2023"]
[Site "Chess.com"]
[Date "2023.08.29"]
[Round "5"]
[White "Cherneevo_23"]
[Black "campochess"]
[Result "1-0"]
[WhiteElo "2422"]
[BlackElo "2185"]
[TimeControl "180+1"]
[EndTime "8:54:40 PDT"]
[Termination "Cherneevo_23 won by resignation"]

1. Nf3 {[%clk 0:03:00.9]} 1... c5 {[%clk 0:02:59.9]} 2. c4 {[%clk 0:03:00.5]}
2... Nc6 {[%clk 0:02:59.5]} 3. d4 {[%clk 0:03:00.6]} 3... cxd4 {[%clk
0:02:58.6]} 4. Nxd4 {[%clk 0:03:00.5]} 4... Nf6 {[%clk 0:02:57.1]} 5. Nc3 {[%clk
0:02:59.3]} 5... g6 {[%clk 0:02:57.2]} 6. e4 {[%clk 0:02:58.5]} 6... d6 {[%clk
0:02:56.2]} 7. Be2 {[%clk 0:02:58.1]} 7... Bg7 {[%clk 0:02:56.1]} 8. Be3 {[%clk
0:02:58.1]} 8... Nd7 {[%clk 0:02:54.6]} 9. O-O {[%clk 0:02:57.2]} 9... O-O
{[%clk 0:02:53.7]} 10. Qd2 {[%clk 0:02:56.6]} 10... Re8 {[%clk 0:02:52.2]} 11.
Rfd1 {[%clk 0:02:53.4]} 11... Nf8 {[%clk 0:02:48.5]} 12. f3 {[%clk 0:02:51.4]}
12... Ne6 {[%clk 0:02:45]} 13. Nb3 {[%clk 0:02:50.7]} 13... b6 {[%clk
0:02:43.7]} 14. Nd5 {[%clk 0:02:49.8]} 14... Nc7 {[%clk 0:02:40.4]} 15. Rac1
{[%clk 0:02:49]} 15... Bb7 {[%clk 0:02:36.6]} 16. Bh6 {[%clk 0:02:24.3]} 16...
Bh8 {[%clk 0:02:35.3]} 17. Bg5 {[%clk 0:02:23.5]} 17... Ne5 {[%clk 0:02:33.5]}
18. Nd4 {[%clk 0:02:20]} 18... Bxd5 {[%clk 0:02:30.4]} 19. cxd5 {[%clk
0:02:18.9]} 19... Qd7 {[%clk 0:02:25.7]} 20. f4 {[%clk 0:02:09.8]} 20... Ng4
{[%clk 0:02:24.4]} 21. Rxc7 {[%clk 0:02:02.8]} 21... Qxc7 {[%clk 0:02:21.5]} 22.
Bxg4 {[%clk 0:02:02.3]} 22... Qc5 {[%clk 0:02:21.5]} 23. Kh1 {[%clk 0:01:48.8]}
23... e5 {[%clk 0:02:16]} 24. dxe6 {[%clk 0:01:47.1]} 24... fxe6 {[%clk
0:02:14.9]} 25. Bxe6+ {[%clk 0:01:45]} 25... Rxe6 {[%clk 0:02:10.9]} 26. Nxe6
{[%clk 0:01:43.1]} 26... Qc4 {[%clk 0:02:10.6]} 27. Qd5 {[%clk 0:01:38.8]} 27...
Qxd5 {[%clk 0:02:07.6]} 28. exd5 {[%clk 0:01:38.1]} 28... Bxb2 {[%clk
0:02:07.2]} 29. Be7 {[%clk 0:01:35.2]} 29... Ba3 {[%clk 0:02:06.2]} 30. Rd3
{[%clk 0:01:33.4]} 30... Bb4 {[%clk 0:02:04.7]} 31. g3 {[%clk 0:01:30.6]} 31...
Rc8 {[%clk 0:02:04.3]} 32. a3 {[%clk 0:01:18.2]} 32... Kf7 {[%clk 0:01:57.8]}
33. axb4 {[%clk 0:01:16]} 33... Kxe7 {[%clk 0:01:57.3]} 34. Ra3 {[%clk
0:01:16.2]} 34... a5 {[%clk 0:01:55]} 35. bxa5 {[%clk 0:01:15.6]} 35... bxa5
{[%clk 0:01:55.1]} 36. Rxa5 {[%clk 0:01:15.9]} 36... Rc2 {[%clk 0:01:54.8]} 37.
g4 {[%clk 0:01:13.9]} 37... Kf6 {[%clk 0:01:52.7]} 38. Ra7 {[%clk 0:01:11.6]}
38... h5 {[%clk 0:01:52.1]} 39. g5+ {[%clk 0:01:06.8]} 39... Kf5 {[%clk
0:01:51.7]} 40. Rf7+ {[%clk 0:01:05.8]} 40... Kg4 {[%clk 0:01:50.9]} 41. Nd4
{[%clk 0:00:59.2]} 41... Rd2 {[%clk 0:01:49.7]} 42. f5 {[%clk 0:00:57.3]} 42...
Kh3 {[%clk 0:01:45.3]} 43. Kg1 {[%clk 0:00:56.5]} 43... Rxd4 {[%clk 0:01:42.1]}
44. fxg6 {[%clk 0:00:55]} 44... Rg4+ {[%clk 0:01:42]} 45. Kf2 {[%clk 0:00:55.4]}
45... Rxg5 {[%clk 0:01:42.2]} 46. Rf6 {[%clk 0:00:55.5]} 46... Rxd5 {[%clk
0:01:41.4]} 47. Kf3 {[%clk 0:00:52.4]} 47... Rg5 {[%clk 0:01:41.1]} 48. Kf4
{[%clk 0:00:51.2]} 48... Rg1 {[%clk 0:01:40.3]} 49. Kf5 {[%clk 0:00:51.4]} 49...
d5 {[%clk 0:01:38.8]} 50. Rd6 {[%clk 0:00:50.3]} 50... Kxh2 {[%clk 0:01:32.5]}
51. Rxd5 {[%clk 0:00:49.1]} 51... h4 {[%clk 0:01:32.6]} 52. Kf6 {[%clk
0:00:49.5]} 52... h3 {[%clk 0:01:23.8]} 53. g7 {[%clk 0:00:47.8]} 53... Kh1
{[%clk 0:01:22.4]} 54. Rg5 {[%clk 0:00:46.6]} 54... Rxg5 {[%clk 0:01:18.2]} 55.
Kxg5 {[%clk 0:00:45.9]} 55... h2 {[%clk 0:01:14.8]} 56. g8=Q {[%clk 0:00:45.8]}
56... Kg2 {[%clk 0:01:13.9]} 57. Kf4+ {[%clk 0:00:46.1]} 57... Kf1 {[%clk
0:01:07.2]} 58. Qc4+ {[%clk 0:00:44.9]} 58... Kf2 {[%clk 0:01:05.1]} 59. Qc2+
{[%clk 0:00:44.1]} 59... Kg1 {[%clk 0:01:05]} 60. Kg3 {[%clk 0:00:42.8]} 1-0

[Event "Early-Titled-Tuesday-Blitz-August-29-2023"]
[Site "Chess.com"]
[Date "2023.08.29"]
[Round "5"]
[White "19912131712118"]
[Black "The_Princess_Moon"]
[Result "1-0"]
[WhiteElo "2442"]
[BlackElo "2191"]
[TimeControl "180+1"]
[EndTime "8:54:41 PDT"]
[Termination "19912131712118 won on time"]

1. e4 {[%clk 0:02:53.3]} 1... c5 {[%clk 0:03:00.9]} 2. Nf3 {[%clk 0:02:51.4]}
2... a6 {[%clk 0:03:01.5]} 3. d4 {[%clk 0:02:51.9]} 3... cxd4 {[%clk 0:03:02]}
4. Nxd4 {[%clk 0:02:52.6]} 4... Nf6 {[%clk 0:03:02]} 5. Nc3 {[%clk 0:02:51]}
5... e5 {[%clk 0:03:02.5]} 6. Nb3 {[%clk 0:02:47.5]} 6... Bb4 {[%clk 0:03:02.1]}
7. Bd3 {[%clk 0:02:46.7]} 7... Bxc3+ {[%clk 0:03:03]} 8. bxc3 {[%clk 0:02:46.5]}
8... Qc7 {[%clk 0:03:02.6]} 9. Bd2 {[%clk 0:02:45.8]} 9... d6 {[%clk 0:03:00.9]}
10. O-O {[%clk 0:02:45.8]} 10... O-O {[%clk 0:03:00.5]} 11. Qf3 {[%clk
0:02:41.3]} 11... Re8 {[%clk 0:02:54.9]} 12. Rad1 {[%clk 0:02:34.4]} 12... b5
{[%clk 0:02:53.5]} 13. Bg5 {[%clk 0:02:29.6]} 13... Bg4 {[%clk 0:02:52.7]} 14.
Qg3 {[%clk 0:02:27.4]} 14... Nbd7 {[%clk 0:02:47.5]} 15. f3 {[%clk 0:02:20.5]}
15... Bh5 {[%clk 0:02:32.5]} 16. Qh4 {[%clk 0:02:00.5]} 16... Bg6 {[%clk
0:02:25.2]} 17. f4 {[%clk 0:01:55.8]} 17... Bh5 {[%clk 0:01:13.5]} 18. Rde1
{[%clk 0:01:44.9]} 18... Qxc3 {[%clk 0:01:00]} 19. fxe5 {[%clk 0:01:34]} 19...
Rxe5 {[%clk 0:00:42.8]} 20. Bf4 {[%clk 0:01:13.5]} 20... Re6 {[%clk 0:00:36.1]}
21. Bd2 {[%clk 0:01:12.5]} 21... Qc7 {[%clk 0:00:31.3]} 22. Nd4 {[%clk
0:01:11.7]} 22... Re5 {[%clk 0:00:29.8]} 23. Bf4 {[%clk 0:01:08.7]} 23... Qb6
{[%clk 0:00:25]} 24. Be3 {[%clk 0:01:04.4]} 24... Qc7 {[%clk 0:00:24]} 25. Nf5
{[%clk 0:01:01.7]} 25... Bg6 {[%clk 0:00:20.2]} 26. Bd4 {[%clk 0:00:58.1]} 26...
Re6 {[%clk 0:00:15.7]} 27. Kh1 {[%clk 0:00:55.4]} 27... Rae8 {[%clk 0:00:14.4]}
28. Re3 {[%clk 0:00:38.5]} 28... Ne5 {[%clk 0:00:13.4]} 29. Rh3 {[%clk
0:00:37.1]} 29... Nxd3 {[%clk 0:00:09.1]} 30. cxd3 {[%clk 0:00:35.9]} 30... h6
{[%clk 0:00:05.8]} 31. Nxh6+ {[%clk 0:00:35.2]} 31... gxh6 {[%clk 0:00:05.8]}
32. Qxh6 {[%clk 0:00:29.1]} 1-0

[Event "Early-Titled-Tuesday-Blitz-August-29-2023"]
[Site "Chess.com"]
[Date "2023.08.29"]
[Round "5"]
[White "wadsy27"]
[Black "artin10862"]
[Result "0-1"]
[WhiteElo "2606"]
[BlackElo "2814"]
[TimeControl "180+1"]
[EndTime "8:54:42 PDT"]
[Termination "artin10862 won by resignation"]

1. Nf3 {[%clk 0:03:00.9]} 1... Nf6 {[%clk 0:02:58.1]} 2. g3 {[%clk 0:03:00.7]}
2... d5 {[%clk 0:02:57.5]} 3. Bg2 {[%clk 0:02:56.9]} 3... Bf5 {[%clk 0:02:57.4]}
4. c4 {[%clk 0:02:50.2]} 4... e6 {[%clk 0:02:48.3]} 5. Qb3 {[%clk 0:02:46.7]}
5... Nc6 {[%clk 0:02:47.8]} 6. d3 {[%clk 0:02:23.5]} 6... Bb4+ {[%clk
0:02:39.3]} 7. Bd2 {[%clk 0:02:19]} 7... a5 {[%clk 0:02:39]} 8. a3 {[%clk
0:02:14.9]} 8... a4 {[%clk 0:02:38]} 9. Qc2 {[%clk 0:02:13.9]} 9... Bxd2+ {[%clk
0:02:17.6]} 10. Nbxd2 {[%clk 0:02:14.8]} 10... O-O {[%clk 0:02:13.9]} 11. O-O
{[%clk 0:02:12.2]} 11... h6 {[%clk 0:02:11.3]} 12. Rac1 {[%clk 0:02:08.6]} 12...
d4 {[%clk 0:02:08.2]} 13. c5 {[%clk 0:01:57.1]} 13... e5 {[%clk 0:02:04.6]} 14.
Nc4 {[%clk 0:01:54]} 14... Re8 {[%clk 0:02:04.5]} 15. Nh4 {[%clk 0:01:43.5]}
15... Bg4 {[%clk 0:01:54.6]} 16. h3 {[%clk 0:01:40.5]} 16... Be6 {[%clk
0:01:54.3]} 17. Qd2 {[%clk 0:01:26.4]} 17... Qd7 {[%clk 0:01:50.6]} 18. Kh2
{[%clk 0:01:26.5]} 18... Nd5 {[%clk 0:01:33.1]} 19. Nf3 {[%clk 0:01:17.9]} 19...
f6 {[%clk 0:01:31.2]} 20. e4 {[%clk 0:00:56.3]} 20... dxe3 {[%clk 0:01:21.3]}
21. fxe3 {[%clk 0:00:55.9]} 21... Nde7 {[%clk 0:01:20]} 22. Nh4 {[%clk 0:00:51]}
22... Red8 {[%clk 0:01:18]} 23. Rfd1 {[%clk 0:00:45.6]} 23... Bd5 {[%clk
0:01:12.7]} 24. Bxd5+ {[%clk 0:00:38.4]} 24... Qxd5 {[%clk 0:01:12.2]} 25. e4
{[%clk 0:00:34.2]} 25... Qxc5 {[%clk 0:01:08]} 26. Ne3 {[%clk 0:00:34.1]} 26...
Qa5 {[%clk 0:01:08.4]} 27. Qf2 {[%clk 0:00:32.6]} 27... Nd4 {[%clk 0:01:08]} 28.
Nef5 {[%clk 0:00:30.2]} 28... Nec6 {[%clk 0:01:04.4]} 29. Nxh6+ {[%clk
0:00:26.8]} 29... gxh6 {[%clk 0:01:01.8]} 30. Qxf6 {[%clk 0:00:26.9]} 30... Rd6
{[%clk 0:01:02.5]} 31. Qf1 {[%clk 0:00:18.4]} 31... Rf8 {[%clk 0:01:02.1]} 32.
Nf5 {[%clk 0:00:18.4]} 32... Rdf6 {[%clk 0:00:48.8]} 33. g4 {[%clk 0:00:18.2]}
33... Ne6 {[%clk 0:00:48.6]} 34. Qf2 {[%clk 0:00:15.4]} 34... Qb6 {[%clk
0:00:47.4]} 35. Qd2 {[%clk 0:00:08.8]} 35... Ncd4 {[%clk 0:00:45.7]} 36. Nxh6+
{[%clk 0:00:08]} 36... Kh7 {[%clk 0:00:45.3]} 0-1

[Event "Early-Titled-Tuesday-Blitz-August-29-2023"]
[Site "Chess.com"]
[Date "2023.08.29"]
[Round "5"]
[White "Sinquefield"]
[Black "Aygehovit1992"]
[Result "0-1"]
[WhiteElo "2437"]
[BlackElo "2744"]
[TimeControl "180+1"]
[EndTime "8:54:47 PDT"]
[Termination "Aygehovit1992 won by checkmate"]

1. d4 {[%clk 0:02:26.6]} 1... Nf6 {[%clk 0:02:59.2]} 2. Nf3 {[%clk 0:02:24.9]}
2... g6 {[%clk 0:02:59.6]} 3. Bg5 {[%clk 0:02:25.1]} 3... Bg7 {[%clk 0:02:59.9]}
4. Nbd2 {[%clk 0:02:25.8]} 4... d5 {[%clk 0:02:59.6]} 5. e3 {[%clk 0:02:26.2]}
5... h6 {[%clk 0:02:59.2]} 6. Bh4 {[%clk 0:02:26]} 6... g5 {[%clk 0:02:59.3]} 7.
Bg3 {[%clk 0:02:25.8]} 7... Ne4 {[%clk 0:02:58.7]} 8. Nxe4 {[%clk 0:02:16.9]}
8... dxe4 {[%clk 0:02:59.6]} 9. Nd2 {[%clk 0:02:17.5]} 9... c5 {[%clk
0:03:00.1]} 10. c3 {[%clk 0:02:16.5]} 10... cxd4 {[%clk 0:02:50.5]} 11. cxd4
{[%clk 0:02:12.9]} 11... Bf5 {[%clk 0:02:49.5]} 12. Bc4 {[%clk 0:02:08.5]} 12...
Nc6 {[%clk 0:02:47.2]} 13. O-O {[%clk 0:02:07.8]} 13... O-O {[%clk 0:02:46.8]}
14. a3 {[%clk 0:02:07.5]} 14... Rc8 {[%clk 0:02:45.7]} 15. b4 {[%clk 0:02:06.8]}
15... Nxd4 {[%clk 0:02:24.6]} 16. exd4 {[%clk 0:02:05]} 16... Qxd4 {[%clk
0:02:25.5]} 17. Rc1 {[%clk 0:02:00.2]} 17... Rfd8 {[%clk 0:02:25.1]} 18. Qb3
{[%clk 0:01:35.6]} 18... Qxd2 {[%clk 0:02:08.8]} 19. Bxf7+ {[%clk 0:01:16.1]}
19... Kh8 {[%clk 0:02:07.2]} 20. Rxc8 {[%clk 0:00:59.5]} 20... Rxc8 {[%clk
0:02:08.1]} 21. Be6 {[%clk 0:00:59.3]} 21... Bxe6 {[%clk 0:01:45.7]} 22. Qxe6
{[%clk 0:00:57.7]} 22... Rc1 {[%clk 0:01:45.5]} 23. Qxe4 {[%clk 0:00:48.1]}
23... Rxf1+ {[%clk 0:01:37.1]} 24. Kxf1 {[%clk 0:00:46.7]} 24... Qc1+ {[%clk
0:01:37.3]} 25. Ke2 {[%clk 0:00:39.8]} 25... Qb2+ {[%clk 0:01:37.4]} 26. Kf1
{[%clk 0:00:38]} 26... Qxa3 {[%clk 0:01:33]} 27. Qxe7 {[%clk 0:00:37.4]} 27...
Qd3+ {[%clk 0:01:31.9]} 28. Qe2 {[%clk 0:00:27.8]} 28... Qb1+ {[%clk 0:01:31.3]}
29. Qe1 {[%clk 0:00:28.1]} 29... Qxe1+ {[%clk 0:01:31.8]} 30. Kxe1 {[%clk
0:00:28.5]} 30... Bc3+ {[%clk 0:01:32.7]} 31. Ke2 {[%clk 0:00:26.7]} 31... Bxb4
{[%clk 0:01:33.6]} 32. Kd3 {[%clk 0:00:26.8]} 32... a6 {[%clk 0:01:25.5]} 33.
Kc4 {[%clk 0:00:26.1]} 33... Be7 {[%clk 0:01:24.8]} 34. Kd5 {[%clk 0:00:25.5]}
34... Kg7 {[%clk 0:01:21.8]} 35. Ke6 {[%clk 0:00:25.7]} 35... Ba3 {[%clk
0:01:19.4]} 36. f4 {[%clk 0:00:19.7]} 36... b5 {[%clk 0:01:15.8]} 37. f5 {[%clk
0:00:19.2]} 37... Kf8 {[%clk 0:01:06]} 38. Bc7 {[%clk 0:00:16.3]} 38... Bc5
{[%clk 0:00:56.2]} 39. g4 {[%clk 0:00:14.7]} 39... b4 {[%clk 0:00:55.8]} 40. Ba5
{[%clk 0:00:14.1]} 40... b3 {[%clk 0:00:55.9]} 41. Bc3 {[%clk 0:00:13.6]} 41...
Ba3 {[%clk 0:00:56.3]} 42. Kf6 {[%clk 0:00:09.3]} 42... b2 {[%clk 0:00:56.3]}
43. Bxb2 {[%clk 0:00:09.6]} 43... Bxb2+ {[%clk 0:00:56.8]} 44. Kg6 {[%clk
0:00:09.8]} 44... a5 {[%clk 0:00:57.4]} 45. Kxh6 {[%clk 0:00:10.1]} 45... a4
{[%clk 0:00:58.3]} 46. Kxg5 {[%clk 0:00:09.9]} 46... a3 {[%clk 0:00:59.2]} 47.
Kg6 {[%clk 0:00:10.4]} 47... a2 {[%clk 0:01:00.1]} 48. g5 {[%clk 0:00:11.1]}
48... a1=Q {[%clk 0:01:00.7]} 49. f6 {[%clk 0:00:12]} 49... Bxf6 {[%clk
0:01:00.6]} 50. h4 {[%clk 0:00:12.9]} 50... Bg7 {[%clk 0:00:59.2]} 51. h5 {[%clk
0:00:12.5]} 51... Qb1# {[%clk 0:00:59.7]} 0-1

[Event "Early-Titled-Tuesday-Blitz-August-29-2023"]
[Site "Chess.com"]
[Date "2023.08.29"]
[Round "5"]
[White "IljaZaragatski"]
[Black "alexrustemov"]
[Result "0-1"]
[WhiteElo "2627"]
[BlackElo "2853"]
[TimeControl "180+1"]
[EndTime "8:54:47 PDT"]
[Termination "alexrustemov won by resignation"]

1. g3 {[%clk 0:03:00.9]} 1... d5 {[%clk 0:02:56.7]} 2. Nf3 {[%clk 0:03:00.5]}
2... c6 {[%clk 0:02:54.9]} 3. Bg2 {[%clk 0:03:00.7]} 3... Bf5 {[%clk 0:02:55.4]}
4. c4 {[%clk 0:03:00.5]} 4... e6 {[%clk 0:02:55.3]} 5. O-O {[%clk 0:02:58.8]}
5... Nf6 {[%clk 0:02:54]} 6. cxd5 {[%clk 0:02:57.9]} 6... exd5 {[%clk
0:02:50.8]} 7. d3 {[%clk 0:02:57.6]} 7... Be7 {[%clk 0:02:46.6]} 8. Qb3 {[%clk
0:02:57.7]} 8... Qb6 {[%clk 0:02:40.9]} 9. Qc2 {[%clk 0:02:57.9]} 9... h6 {[%clk
0:02:37]} 10. Nc3 {[%clk 0:02:57.7]} 10... O-O {[%clk 0:02:35.1]} 11. e4 {[%clk
0:02:57.6]} 11... Bh7 {[%clk 0:02:33.5]} 12. Be3 {[%clk 0:02:51.7]} 12... Qa6
{[%clk 0:02:32.9]} 13. Rfd1 {[%clk 0:02:44.7]} 13... dxe4 {[%clk 0:02:29.4]} 14.
dxe4 {[%clk 0:02:43.6]} 14... Nbd7 {[%clk 0:02:29.8]} 15. Nd4 {[%clk 0:02:23.3]}
15... Rfe8 {[%clk 0:02:27.1]} 16. Bf1 {[%clk 0:02:12.2]} 16... Qa5 {[%clk
0:02:24.4]} 17. Nb3 {[%clk 0:02:12.3]} 17... Qh5 {[%clk 0:02:21]} 18. Be2 {[%clk
0:02:08.7]} 18... Ng4 {[%clk 0:02:14.4]} 19. Bxg4 {[%clk 0:01:35.9]} 19... Qxg4
{[%clk 0:02:15.3]} 20. Qe2 {[%clk 0:01:13]} 20... Qxe2 {[%clk 0:02:09.2]} 21.
Nxe2 {[%clk 0:01:13]} 21... Ne5 {[%clk 0:02:09.7]} 22. Nc3 {[%clk 0:01:08.1]}
22... Bb4 {[%clk 0:02:06.6]} 23. Nc5 {[%clk 0:00:51.6]} 23... Bxc3 {[%clk
0:02:02.4]} 24. bxc3 {[%clk 0:00:52.5]} 24... b6 {[%clk 0:02:02.8]} 25. Nb7
{[%clk 0:00:31]} 25... Nf3+ {[%clk 0:02:01.5]} 26. Kg2 {[%clk 0:00:22.3]} 26...
Bxe4 {[%clk 0:01:56.8]} 27. Nd6 {[%clk 0:00:22.2]} 27... Ng5+ {[%clk 0:01:56]}
28. Nxe4 {[%clk 0:00:20.8]} 28... Nxe4 {[%clk 0:01:53.8]} 29. c4 {[%clk
0:00:20.1]} 29... c5 {[%clk 0:01:36.5]} 30. a4 {[%clk 0:00:20]} 30... Rad8
{[%clk 0:01:29.8]} 31. Rxd8 {[%clk 0:00:19.6]} 31... Rxd8 {[%clk 0:01:29.4]} 32.
a5 {[%clk 0:00:20.5]} 32... Nd6 {[%clk 0:01:23.4]} 33. axb6 {[%clk 0:00:19.5]}
33... axb6 {[%clk 0:01:23]} 34. Rd1 {[%clk 0:00:17.7]} 34... Kf8 {[%clk
0:01:22.9]} 35. Bf4 {[%clk 0:00:17.5]} 35... Ke7 {[%clk 0:01:23.4]} 36. Re1+
{[%clk 0:00:14.8]} 36... Kd7 {[%clk 0:01:19.1]} 37. Bxd6 {[%clk 0:00:05.9]}
37... Kxd6 {[%clk 0:01:19.3]} 38. Kf3 {[%clk 0:00:06.4]} 38... Kc6 {[%clk
0:01:12.8]} 39. Re7 {[%clk 0:00:05.1]} 39... Rd7 {[%clk 0:01:12.8]} 40. Re8
{[%clk 0:00:04.9]} 40... Rd4 {[%clk 0:01:02.2]} 41. Re7 {[%clk 0:00:04.3]} 41...
Rxc4 {[%clk 0:01:01.6]} 42. Rxf7 {[%clk 0:00:04.7]} 42... b5 {[%clk 0:01:02.3]}
43. Rxg7 {[%clk 0:00:04.3]} 43... b4 {[%clk 0:01:02.5]} 44. Rg6+ {[%clk
0:00:03.6]} 44... Kb5 {[%clk 0:01:01.9]} 45. Rxh6 {[%clk 0:00:04.1]} 45... b3
{[%clk 0:01:01.4]} 46. Rh8 {[%clk 0:00:04.2]} 46... Rb4 {[%clk 0:00:58.8]} 47.
Rb8+ {[%clk 0:00:02.9]} 47... Kc4 {[%clk 0:00:58.8]} 48. Re8 {[%clk 0:00:03.8]}
48... b2 {[%clk 0:00:59]} 0-1

[Event "Early-Titled-Tuesday-Blitz-August-29-2023"]
[Site "Chess.com"]
[Date "2023.08.29"]
[Round "5"]
[White "Rsnr"]
[Black "jk13"]
[Result "1-0"]
[WhiteElo "2906"]
[BlackElo "2653"]
[TimeControl "180+1"]
[EndTime "8:54:48 PDT"]
[Termination "Rsnr won by resignation"]

1. d4 {[%clk 0:03:00]} 1... Nf6 {[%clk 0:03:00]} 2. c4 {[%clk 0:03:00.9]} 2...
e6 {[%clk 0:03:00.6]} 3. Nf3 {[%clk 0:03:01.2]} 3... Bb4+ {[%clk 0:03:01.3]} 4.
Nbd2 {[%clk 0:02:59.4]} 4... O-O {[%clk 0:03:01.1]} 5. a3 {[%clk 0:02:58.3]}
5... Be7 {[%clk 0:03:01.4]} 6. e4 {[%clk 0:02:57.8]} 6... d5 {[%clk 0:03:02.3]}
7. e5 {[%clk 0:02:57.2]} 7... Nfd7 {[%clk 0:03:02.9]} 8. Bd3 {[%clk 0:02:52.8]}
8... c5 {[%clk 0:03:03.1]} 9. h4 {[%clk 0:02:52.6]} 9... g6 {[%clk 0:03:03.5]}
10. O-O {[%clk 0:02:43.2]} 10... Nc6 {[%clk 0:02:57.5]} 11. Re1 {[%clk
0:02:39.8]} 11... a5 {[%clk 0:02:54.8]} 12. cxd5 {[%clk 0:02:21.8]} 12... exd5
{[%clk 0:02:54.1]} 13. h5 {[%clk 0:02:19]} 13... cxd4 {[%clk 0:02:37.6]} 14.
hxg6 {[%clk 0:01:59.2]} 14... fxg6 {[%clk 0:02:35.8]} 15. Nb3 {[%clk 0:01:58.6]}
15... a4 {[%clk 0:02:11.9]} 16. Nbxd4 {[%clk 0:01:55]} 16... Nxd4 {[%clk
0:02:12.8]} 17. Nxd4 {[%clk 0:01:54.9]} 17... Nc5 {[%clk 0:02:13.4]} 18. Bc2
{[%clk 0:01:47.9]} 18... Bh4 {[%clk 0:01:27.3]} 19. g3 {[%clk 0:01:41.7]} 19...
Bg5 {[%clk 0:01:25.6]} 20. f4 {[%clk 0:01:41.1]} 20... Be7 {[%clk 0:01:24.4]}
21. Be3 {[%clk 0:01:36.9]} 21... Qb6 {[%clk 0:01:09.3]} 22. Qe2 {[%clk
0:01:16.7]} 22... Bd7 {[%clk 0:01:02]} 23. Kg2 {[%clk 0:00:51.9]} 23... Rae8
{[%clk 0:00:43]} 24. Rh1 {[%clk 0:00:51.1]} 24... Ne4 {[%clk 0:00:41.6]} 25.
Bxe4 {[%clk 0:00:40.8]} 25... dxe4 {[%clk 0:00:41.5]} 26. Qc4+ {[%clk
0:00:41.2]} 26... Kh8 {[%clk 0:00:36.7]} 27. Rxh7+ {[%clk 0:00:35.3]} 27... Kxh7
{[%clk 0:00:36.6]} 28. Rh1+ {[%clk 0:00:35.2]} 28... Kg7 {[%clk 0:00:37.3]} 29.
Nf5+ {[%clk 0:00:35.1]} 29... Bxf5 {[%clk 0:00:31.7]} 30. Bxb6 {[%clk
0:00:35.7]} 30... Rc8 {[%clk 0:00:27.3]} 31. Qxa4 {[%clk 0:00:35.6]} 31... Rc6
{[%clk 0:00:26.3]} 32. Bd4 {[%clk 0:00:33]} 32... Rfc8 {[%clk 0:00:25.5]} 33.
e6+ {[%clk 0:00:31.3]} 33... Bf6 {[%clk 0:00:22]} 34. Bxf6+ {[%clk 0:00:31.4]}
34... Kxf6 {[%clk 0:00:22.9]} 35. Qd4+ {[%clk 0:00:31.2]} 35... Kxe6 {[%clk
0:00:11.7]} 36. Qe5+ {[%clk 0:00:31.2]} 36... Kd7 {[%clk 0:00:12.4]} 37. Rh7+
{[%clk 0:00:30.2]} 1-0